[Event "XI Paracin Festival 2018"]
[Site "Paracin"]
[Date "2018.07.07"]
[Round "2"]
[White "Stankovic, Milos"]
[Black "Popovic, Milan S"]
[Result "1/2-1/2"]
[ECO "B53"]
[WhiteElo "2420"]
[BlackElo "2264"]
[Annotator "NA"]
[PlyCount "140"]
[EventDate "2018.07.06"]
[EventType "swiss"]
[EventCountry "SRB"]
[SourceTitle "playchess.com"]
[Source "ChessBase"]
[SourceQuality "1"]
[TimeControl "5400+30"]

1. e4 {[%emt 0:00:39]} c5 {[%emt 0:00:00]} 2. Nf3 {[%emt 0:00:34]} d6 {[%emt 0:00:00]} 3. d4 {[%emt 0:00:32]} cxd4 {[%emt 0:00:00]} 4. Qxd4 {[%emt 0:01:19]} Nf6 {[%emt 0:00:00]} 5. Nc3 {[%emt 0:08:22]} Nc6 {[%emt 0:00:00]} 6. Bb5 {[%emt 0:00:37]} Bd7 {[%emt 0:00:01]} 7. Bxc6 {[%emt 0:00:58]} Bxc6 {[%emt 0:00:20]} 8. Bg5 {[%emt 0:00:48]} e6 {[%emt 0:00:20]} 9. O-O-O {[%emt 0:01:34]} Be7 $1 {[%emt 0:00:12]} 10. Qd3 {[%emt 0:01:41]} Qa5 {[%emt 0:00:13]} 11. Bd2 {[%emt 0:08:57] LiveBook: 27 Games B53: Sizilianisch (Ungarische Variante)} (11. h4 h6 12. Bd2 Qa6 13. Nd4 Qxd3 14. cxd3 Ng4 15. Nxc6 bxc6 16. Rdf1 d5 17. Kc2 Bc5 18. Nd1 h5 19. Bc3 Nf6 20. f3 {1-0 (59) Hamdouchi,H (2580)-Navara,D (2727) Brest 2018}) 11... Qa6 {[%emt 0:01:55]} 12. Nd4 {[%emt 0:09:44]} Qxd3 {[%emt 0:09:01]} 13. cxd3 {[%emt 0:02:34]} Rc8 {[%emt 0:17:15]} 14. h3 $146 {[%emt 0:03:34]} ({Vorgänger:} 14. Kb1 d5 15. f3 O-O 16. e5 Nd7 17. f4 Nc5 18. Be3 f6 19. exf6 Bxf6 {0-1 (47) Kroeze,F (2396)-Burg,T (2490) Netherlands 2014}) 14... d5 {[%emt 0:26:09]} 15. e5 {[%emt 0:11:40]} Nd7 {[%emt 0:00:07]} 16. f4 {[%emt 0:00:44]} Bc5 {[%emt 0:09:32]} 17. Nb3 {[%emt 0:04:21]} f6 {[%emt 0:14:17]} 18. Nxc5 Nxc5 {[%emt 0:00:04]} 19. Be3 {[%emt 0:16:02]} Na4 {[%emt 0:00:49]} 20. Bd4 {[%emt 0:03:58]} Nxc3 {[%emt 0:00:54]} 21. bxc3 {[%emt 0:00:11]} Kf7 {[%emt 0:01:31]} 22. Rhf1 $11 {[%emt 0:02:55]} f5 {[%emt 0:02:55]} 23. g4 {[%emt 0:00:24]} g6 {[%emt 0:00:53]} 24. Rf2 {[%emt 0:00:42]} a6 {[%emt 0:03:35]} 25. Rg1 {[%emt 0:00:22]} Rhg8 {[%emt 0:03:40]} 26. Rfg2 {[%emt 0:01:47]} h6 {[%emt 0:01:41]} 27. Kd2 {[%emt 0:00:45]} Bb5 {[%emt 0:01:04]} 28. Ke3 {[%emt 0:01:02]} Ba4 {[%emt 0:00:34]} 29. h4 {[%emt 0:01:37]} h5 {[%emt 0:02:57]} 30. gxf5 {[%emt 0:04:22]} gxf5 {[%emt 0:00:06]} 31. Rg5 {[%emt 0:00:14]} Rxg5 {[%emt 0:01:13]} 32. fxg5 {[%emt 0:00:21]} Kg6 {[%emt 0:00:15]} 33. Rb1 {[%emt 0:00:27]} Bb5 {[%emt 0:00:54]} 34. a4 {[%emt 0:00:47]} Bc6 {[%emt 0:00:09]} 35. Rb6 {[%emt 0:00:30]} Rf8 {[%emt 0:01:32]} 36. Kf4 {[%emt 0:00:41]} Rf7 {[%emt 0:00:20]} 37. Bc5 {[%emt 0:01:04]} Rd7 {[%emt 0:00:11]} 38. a5 {[%emt 0:01:29]} Rf7 {[%emt 0:00:18]} 39. Bf2 {[%emt 0:00:56]} Rc7 {[%emt 0:00:22]} 40. Ke3 {[%emt 0:00:25]} Kf7 {[%emt 0:03:09]} 41. Bg3 {[%emt 0:00:14]} Rc8 {[%emt 0:00:38]} 42. Kd4 {[%emt 0:00:18]} Rc7 {[%emt 0:01:12]} 43. Bf4 {[%emt 0:00:15]} Rc8 {[%emt 0:00:25]} 44. Bd2 {[%emt 0:00:06]} Rc7 {[%emt 0:00:18]} 45. Bc1 {[%emt 0:03:55]} Rc8 {[%emt 0:00:19]} 46. Be3 {[%emt 0:00:55]} Rc7 {[%emt 0:00:09]} 47. Bd2 {[%emt 0:01:22]} Rc8 {[%emt 0:00:04]} 48. Kc5 {[%emt 0:00:40]} Rc7 {[%emt 0:00:26]} 49. g6+ {[%emt 0:01:43]} Kxg6 {[%emt 0:00:38]} 50. Kd6 {[%emt 0:00:01]} Rf7 {[%emt 0:00:56]} 51. Kxe6 {[%emt 0:00:06]} f4 {[%emt 0:01:03]} 52. Rb1 {[%emt 0:00:09]} Bd7+ {[%emt 0:00:35]} 53. Kxd5 {[%emt 0:00:15]} Kf5 {[%emt 0:00:38]} 54. d4 {[%emt 0:02:06]} Bc6+ {[%emt 0:00:36]} 55. Kc5 {[%emt 0:00:11]} Be4 {[%emt 0:00:29]} 56. Rg1 {[%emt 0:00:53]} Rc7+ {[%emt 0:00:23]} 57. Kd6 {[%emt 0:00:25]} Rc6+ {[%emt 0:00:05]} 58. Kd7 {[%emt 0:00:08]} Bd5 {[%emt 0:00:21]} 59. Rg5+ {[%emt 0:04:26]} Ke4 60. Rxh5 {[%emt 0:00:09]} f3 {[%emt 0:00:35]} 61. Be1 {[%emt 0:00:24]} Ke3 {[%emt 0:00:53]} 62. e6 {[%emt 0:00:49]} Bxe6+ {[%emt 0:00:25]} 63. Ke7 {[%emt 0:00:02]} Bg4 {[%emt 0:00:46]} 64. Re5+ {[%emt 0:00:08]} Kf4 {[%emt 0:00:27]} 65. h5 {[%emt 0:00:29]} Rc7+ {[%emt 0:00:24]} 66. Kf8 {[%emt 0:01:17]} Rc8+ {[%emt 0:00:07]} 67. Ke7 {[%emt 0:00:23]} Rc7+ {[%emt 0:00:03]} 68. Kf8 {[%emt 0:01:04]} Rc8+ {[%emt 0:00:04]} 69. Ke7 {[%emt 0:00:06]} Rc6 {Kd6 f2+ Kd5 Kf3} 70. Re4+ Kxe4 {Kxe4} 1/2-1/2

[Event "XI Paracin Festival 2018"]
[Site "Paracin"]
[Date "2018.07.07"]
[Round "2"]
[White "Djordjevic, Vuk"]
[Black "Uzumcu, Ahmet Utku"]
[Result "1-0"]
[ECO "B20"]
[WhiteElo "2403"]
[BlackElo "2261"]
[Annotator "NA"]
[PlyCount "133"]
[EventDate "2018.07.06"]
[EventType "swiss"]
[EventCountry "SRB"]
[SourceTitle "playchess.com"]
[Source "ChessBase"]
[SourceQuality "1"]
[TimeControl "5400+30"]

1. e4 {[%emt 0:00:00]} c5 {[%emt 0:00:00]} 2. Ne2 {[%emt 0:00:08]} d6 {[%emt 0:00:23]} 3. g3 {[%emt 0:00:32]} Nf6 {[%emt 0:00:37]} 4. Bg2 {[%emt 0:00:13]} g6 {[%emt 0:01:42] B20: Sicilian: Unusual White 2nd moves} 5. c3 {[%emt 0:01:28]} e5 {[%emt 0:02:45]} 6. d4 {[%emt 0:03:34]} Nbd7 $146 {[%emt 0:04:56]} ({Predecessor:} 6... cxd4 7. cxd4 Nc6 8. O-O Bg7 9. Nbc3 O-O 10. d5 Nb8 11. a4 a5 12. Nb5 Na6 13. Be3 Qe7 14. h3 Nd7 15. Rc1 Ndc5 16. Rc4 Bd7 17. Qc2 b6 {0-1 (49) Galkin,A (2607)-Shipov,S (2589) chessassistantclub.com INT 2004}) 7. Nd2 {[%emt 0:09:18]} (7. dxe5 $16 Nxe5 8. O-O) 7... Qc7 {[%emt 0:04:29]} 8. O-O {[%emt 0:04:42]} Bg7 {[%emt 0:07:51]} 9. b3 {[%emt 0:09:47]} O-O {[%emt 0:05:26]} 10. Bb2 {[%emt 0:03:29]} Rd8 {[%emt 0:02:56]} 11. Rc1 {[%emt 0:03:52]} b5 {[%emt 0:03:03]} 12. h3 {[%emt 0:07:57]} Bb7 {[%emt 0:04:29]} 13. f4 {[%emt 0:05:33]} exf4 {[%emt 0:09:10]} 14. gxf4 {[%emt 0:03:08]} Re8 {[%emt 0:12:58]} 15. Ng3 {[%emt 0:06:39]} cxd4 {[%emt 0:06:56]} 16. cxd4 {[%emt 0:00:31]} Qb6 {[%emt 0:00:35]} 17. Kh2 {[%emt 0:03:30]} Rac8 {[%emt 0:02:48]} 18. Rxc8 {[%emt 0:08:18]} Rxc8 {[%emt 0:01:24]} 19. b4 {[%emt 0:03:55]} a5 {[%emt 0:02:48]} 20. Qb3 Nb8 $14 {[%emt 0:06:41]} (20... axb4 $15 21. Rf2 Ne8) 21. a3 {[%emt 0:05:35]} axb4 {[%emt 0:05:02]} 22. axb4 {[%emt 0:00:56]} Qc7 {[%emt 0:01:38]} 23. Rc1 {[%emt 0:04:39]} Qd7 {[%emt 0:00:15]} 24. Rxc8+ {[%emt 0:06:54]} Qxc8 {[%emt 0:00:15]} 25. d5 {[%emt 0:00:20]} Qd7 {[%emt 0:02:35]} 26. Bc3 {[%emt 0:00:52]} Qc8 {[%emt 0:01:33]} 27. Ne2 {[%emt 0:01:17]} Nbd7 {[%emt 0:02:04]} 28. Bd4 {[%emt 0:01:12]} Qc7 {[%emt 0:01:37]} 29. Qd3 {[%emt 0:01:43]} Ba6 {[%emt 0:00:52]} 30. Nb3 {[%emt 0:02:01]} Qc4 {[%emt 0:02:13]} 31. Qxc4 {[%emt 0:00:49]} bxc4 {[%emt 0:00:01]} 32. Nbc1 {[%emt 0:00:04]} Bh6 {[%emt 0:01:53]} 33. Bf3 {[%emt 0:01:09]} Kf8 {[%emt 0:01:35]} 34. Na2 {[%emt 0:02:00]} Ne8 {[%emt 0:00:10]} 35. Nac3 {[%emt 0:00:20]} Nc7 {[%emt 0:00:01]} 36. Kg3 {[%emt 0:00:56]} Ke7 {[%emt 0:00:11]} 37. h4 {[%emt 0:00:34]} Kd8 {[%emt 0:01:52]} 38. Bg4 {[%emt 0:00:21]} Bf8 {[%emt 0:00:59]} 39. Ng1 {[%emt 0:00:37]} Be7 {[%emt 0:00:28]} 40. Be2 {[%emt 0:00:30]} Kc8 {[%emt 0:00:58]} 41. Nf3 {[%emt 0:00:09]} Kd8 {[%emt 0:00:53]} 42. Nd2 {[%emt 0:00:13]} Nf6 {[%emt 0:00:16]} 43. Bxc4 {[%emt 0:00:53]} Nh5+ {[%emt 0:00:41]} 44. Kg4 {[%emt 0:00:25]} Bc8+ {[%emt 0:00:24]} 45. f5 {[%emt 0:00:51]} Nf6+ {[%emt 0:00:23]} 46. Kf4 {[%emt 0:00:25]} Nh5+ {[%emt 0:00:12]} 47. Kg4 {[%emt 0:00:01]} Nf6+ {[%emt 0:00:16]} 48. Kf3 {[%emt 0:01:06]} gxf5 {[%emt 0:00:07]} 49. exf5 {[%emt 0:00:28]} Bxf5 {[%emt 0:00:32]} 50. b5 {[%emt 0:00:25]} Kc8 {[%emt 0:00:49]} 51. b6 {[%emt 0:00:35]} Na8 {[%emt 0:00:37]} 52. Ba6+ {[%emt 0:00:32]} Kb8 {[%emt 0:00:01]} 53. Nc4 {[%emt 0:00:15]} Bd3 {[%emt 0:01:18]} 54. Ke3 {[%emt 0:00:46]} Bxc4 {[%emt 0:00:15]} 55. Bxc4 {[%emt 0:00:01]} Nd7 {[%emt 0:00:12]} 56. h5 {[%emt 0:00:53]} Naxb6 {[%emt 0:00:46]} 57. Bd3 {[%emt 0:00:29]} h6 {[%emt 0:00:23]} 58. Ke4 {[%emt 0:00:37]} Nf6+ {[%emt 0:00:51]} 59. Kf5 {[%emt 0:00:09]} Nbxd5 {[%emt 0:01:02]} 60. Nxd5 {[%emt 0:00:17]} Nxd5 {[%emt 0:00:03]} 61. Bc4 {[%emt 0:00:02]} Nc7 {[%emt 0:01:03]} 62. Bxf7 {[%emt 0:01:30]} Bg5 {[%emt 0:00:20]} 63. Kg6 {[%emt 0:00:26]} Kc8 {[%emt 0:01:07]} 64. Bg7 {[%emt 0:00:02]} Kd7 {[%emt 0:00:45]} 65. Bxh6 {[%emt 0:00:02]} Be7 {[%emt 0:00:30]} 66. Bg7 {[%emt 0:00:34]} d5 {[%emt 0:00:31]} 67. h6 {[%emt 0:00:10]} 1-0

[Event "XI Paracin Festival 2018"]
[Site "Paracin"]
[Date "2018.07.07"]
[Round "2"]
[White "Mcphillips, Joseph"]
[Black "Bratkovic, Jakob"]
[Result "0-1"]
[ECO "A00"]
[WhiteElo "2402"]
[BlackElo "2253"]
[Annotator "NA"]
[PlyCount "122"]
[EventDate "2018.07.06"]
[EventType "swiss"]
[EventCountry "SRB"]
[SourceTitle "playchess.com"]
[Source "ChessBase"]
[SourceQuality "1"]
[TimeControl "5400+30"]

1. e3 {[%emt 0:01:57]} Nf6 {[%emt 0:02:35]} 2. b3 {[%emt 0:01:28]} g6 {[%emt 0:02:57]} 3. Bb2 {[%emt 0:01:05]} Bg7 {[%emt 0:00:14]} 4. Be2 {[%emt 0:00:44]} O-O {[%emt 0:01:10]} 5. Nf3 {[%emt 0:01:24]} d5 {[%emt 0:01:19]} 6. O-O {[%emt 0:01:29]} c5 {[%emt 0:03:45]} 7. c4 {[%emt 0:02:27]} d4 {[%emt 0:04:21] A30: Symmetrical English: Double Fianchetto and Hedgehog} (7... dxc4 8. bxc4 Nc6 9. d3 b6 10. Nc3 Bb7 11. Rb1 e6 12. Qc2 Qe7 13. Nd2 Rfd8 14. a3 Ne8 15. f4 Nd6 16. Nce4 Nxe4 17. Nxe4 {0-1 (35) Kryvoruchko,Y (2710)-Anand,V (2803) Berlin 2015}) 8. exd4 {[%emt 0:22:05]} Nh5 {[%emt 0:00:50]} 9. Ne5 {[%emt 0:01:28] LiveBook: 3 Games} Nf4 $146 {[%emt 0:04:16]} ({Predecessor:} 9... cxd4 $5 {[%cal Rg7e5]} 10. Bxh5 Bxe5 $11 11. Bf3 Bg7 12. d3 Nc6 13. Nd2 e5 14. a3 a5 15. c5 {½-½ (30) Tran,T (2468)-Kovalev,V (2609) St Petersburg 2016}) 10. dxc5 {[%emt 0:05:07]} Nd7 {[%emt 0:05:17]} 11. d4 {[%emt 0:10:21]} Nxe5 {[%emt 0:01:22]} 12. dxe5 {[%emt 0:00:03]} Qc7 {[%emt 0:01:28]} 13. Nc3 {[%emt 0:07:14]} Qxe5 {[%emt 0:08:23]} 14. Bf3 {[%emt 0:01:43]} Qxc5 {[%emt 0:01:07]} 15. Ne4 {[%emt 0:04:30]} Qc7 {[%emt 0:02:58]} 16. Bxg7 {[%emt 0:00:04]} Kxg7 {[%emt 0:00:10]} 17. Qd4+ {[%emt 0:00:49]} Kg8 {[%emt 0:03:47]} 18. Rad1 {[%emt 0:00:43]} Ne6 {[%emt 0:03:23]} 19. Qe3 {[%emt 0:01:09]} Bd7 {[%emt 0:03:59]} 20. Nc3 {[%emt 0:02:25]} Bc6 {[%emt 0:01:17]} 21. Bd5 {[%emt 0:00:35]} Ng7 {[%emt 0:01:46]} 22. Rfe1 {[%emt 0:04:00]} Nf5 {[%emt 0:06:14]} 23. Qc5 {[%emt 0:03:15]} Qc8 {[%emt 0:06:43]} 24. Bxc6 {[%emt 0:02:38]} bxc6 {[%emt 0:00:28]} 25. h3 {[%emt 0:00:10]} h5 {[%emt 0:05:11]} 26. Rd3 {[%emt 0:00:02]} h4 {[%emt 0:02:58]} 27. Red1 {[%emt 0:00:26]} Qe6 {[%emt 0:02:40]} 28. R3d2 {[%emt 0:01:38]} a5 $16 {[%emt 0:02:40]} 29. Na4 {[%emt 0:02:24]} Kh7 {[%emt 0:04:25]} 30. Nb6 {[%emt 0:02:31]} Rfd8 {[%emt 0:00:52]} 31. Kf1 {[%emt 0:05:33]} Rxd2 {[%emt 0:02:22]} 32. Rxd2 {[%emt 0:00:01]} Qe4 {[%emt 0:00:10]} 33. Re2 {[%emt 0:03:27]} Qf4 {[%emt 0:01:45]} 34. Re1 {[%emt 0:02:38]} Rd8 {[%emt 0:01:28]} 35. Kg1 {[%emt 0:01:47]} Rd2 {[%emt 0:00:52]} 36. Rf1 {[%emt 0:00:47]} Nd4 {[%emt 0:00:20]} 37. Kh1 {[%emt 0:02:38]} Rxf2 {[%emt 0:04:34]} 38. Rxf2 {[%emt 0:00:04]} Qxf2 {[%emt 0:00:04]} 39. Nd7 {[%emt 0:00:06]} Qf1+ {[%emt 0:01:26]} 40. Kh2 {[%emt 0:00:01]} Qf4+ {[%emt 0:00:15]} 41. Kh1 {[%emt 0:00:20]} Ne2 {[%emt 0:00:30]} 42. Qa7 {[%emt 0:04:31]} c5 {[%emt 0:00:14]} 43. Qxc5 {[%emt 0:02:37]} Ng3+ {[%emt 0:00:06]} 44. Kh2 Ne4+ {[%emt 0:00:53]} 45. Kh1 {[%emt 0:00:32]} Nxc5 {[%emt 0:00:06]} 46. Nxc5 {[%emt 0:00:11]} Qd4 {[%emt 0:00:13]} 47. Na4 {[%emt 0:00:04]} Qa1+ {[%emt 0:00:06]} 48. Kh2 {[%emt 0:00:03]} Qxa2 {[%emt 0:00:07]} 49. Nc5 {[%emt 0:00:08]} Qb2 {[%emt 0:00:14]} 50. Kh1 {[%emt 0:00:08]} Qa1+ {[%emt 0:00:06]} 51. Kh2 {[%emt 0:00:01]} Qe5+ {[%emt 0:00:07]} 52. Kg1 {[%emt 0:00:02]} Qxc5+ {[%emt 0:00:05]} 53. Kf1 {[%emt 0:00:01]} Qb4 {[%emt 0:00:07]} 54. c5 {[%emt 0:00:01]} Qxb3 {[%emt 0:00:06]} 55. Kf2 {[%emt 0:00:02]} a4 {[%emt 0:00:06]} 56. c6 {[%emt 0:00:05]} a3 {[%emt 0:00:05]} 57. c7 {[%emt 0:00:03]} Qb6+ {[%emt 0:00:04]} 58. Kf3 {[%emt 0:00:03]} Qxc7 {[%emt 0:00:06]} 59. g3 {[%emt 0:00:06]} a2 {[%emt 0:00:04]} 60. gxh4 {[%emt 0:00:10]} a1=Q {[%emt 0:00:07]} 61. h5 {[%emt 0:00:01]} Qac3+ {[%emt 0:00:12]} 0-1

[Event "XI Paracin Festival 2018"]
[Site "Paracin"]
[Date "2018.07.07"]
[Round "2"]
[White "Tomic, Aleksandar"]
[Black "Danaci, Ege"]
[Result "1-0"]
[ECO "E81"]
[WhiteElo "2347"]
[BlackElo "1902"]
[Annotator "NA"]
[PlyCount "99"]
[EventDate "2018.07.06"]
[EventType "swiss"]
[EventCountry "SRB"]
[SourceTitle "playchess.com"]
[Source "ChessBase"]
[SourceQuality "1"]
[TimeControl "5400+30"]

1. d4 Nf6 2. c4 g6 3. Nc3 Bg7 4. e4 d6 5. f3 O-O 6. Bg5 c5 7. d5 a6 8. a4 e6 9. Qd2 exd5 10. cxd5 Nbd7 11. Nh3 Re8 12. Be2 h6 13. Be3 Ne5 14. Nf2 Kh7 15. O-O Nh5 $146 {A65: Modern Benoni: 6 e4} ({Predecessor:} 15... g5 16. a5 b5 17. axb6 Nfd7 18. Na4 Nxb6 19. Nxb6 Qxb6 20. Qc2 Ng6 21. Rab1 a5 22. b3 Ba6 {½-½ (22) Preotu,R (2497)-Stremavicius,T (2422) Dallas 2017}) 16. f4 Qh4 17. fxe5 Bxe5 18. Nh3 $1 Bxh3 19. Rxf7+ Kg8 20. Bf2 Bd4 21. Bxd4 cxd4 22. Raf1 Qg5 $14 23. Qxg5 hxg5 24. Nb1 Nf4 25. R7xf4 gxf4 26. gxh3 Rxe4 27. Bf3 Re3 28. Bg4 b5 29. Nd2 bxa4 30. Rxf4 Rb8 31. Nc4 Re1+ 32. Kf2 Rc1 33. Rxd4 Rb4 34. Be2 Rh1 35. Bf1 Rxh2+ 36. Bg2 Kg7 37. Kg1 Rxg2+ 38. Kxg2 Kf6 39. h4 Rb3 40. Kf2 Kf5 41. Ke2 Rh3 42. Kd2 Rb3 43. Kc2 Rh3 44. Kb1 Rb3 45. Rd2 a3 46. Nxd6+ Kf6 47. Nc4 axb2 48. d6 Rb8 49. d7 Ke7 50. Na5 1-0

[Event "XI Paracin Festival 2018"]
[Site "Paracin"]
[Date "2018.07.07"]
[Round "2"]
[White "Nestorovic, Dejan"]
[Black "Ayan, Bengu Sena"]
[Result "1-0"]
[ECO "D10"]
[WhiteElo "2341"]
[BlackElo "1787"]
[Annotator "NA"]
[PlyCount "81"]
[EventDate "2018.07.06"]
[EventType "swiss"]
[EventCountry "SRB"]
[SourceTitle "playchess.com"]
[Source "ChessBase"]
[SourceQuality "1"]
[TimeControl "5400+30"]

1. d4 {[%emt 0:00:00]} d5 {[%emt 0:00:00]} 2. c4 {[%emt 0:00:28]} c6 {[%emt 0:00:00]} 3. cxd5 {[%emt 0:00:10]} cxd5 {[%emt 0:00:00]} 4. Bg5 {[%emt 0:00:11]} Nc6 {[%emt 0:02:37]} 5. Nc3 {[%emt 0:00:36]} Nf6 {[%emt 0:11:18] LiveBook: 29 Games} 6. Bxf6 {[%emt 0:00:22]} exf6 {[%emt 0:00:25]} 7. e3 {[%emt 0:01:10]} Be6 {[%emt 0:03:00]} 8. Qb3 {[%emt 0:17:18]} Qd7 {[%emt 0:02:25]} 9. Bd3 {[%emt 0:12:21]} Be7 {[%emt 0:02:14]} 10. Nge2 {[%emt 0:00:10]} O-O {[%emt 0:06:09]} 11. Nf4 {[%emt 0:02:36]} Rfd8 {[%emt 0:02:50]} 12. O-O {[%emt 0:08:27] Rac} Rac8 {[%emt 0:05:20] Ra} 13. Rac1 {[%emt 0:02:43]} a6 {[%emt 0:03:13]} 14. Qd1 $14 {[%emt 0:07:45]} Bd6 {[%emt 0:07:07]} 15. Nfxd5 {[%emt 0:08:14]} Bxd5 {[%emt 0:01:38]} 16. Nxd5 {[%emt 0:00:08]} Bxh2+ {[%emt 0:00:29]} 17. Kxh2 {[%emt 0:00:07]} Qxd5 {[%emt 0:00:08]} 18. Bc4 {[%emt 0:04:34]} Qd6+ {[%emt 0:03:25]} 19. Kg1 {[%emt 0:01:46]} f5 {[%emt 0:03:33]} 20. Qf3 {[%emt 0:01:55]} g6 {[%emt 0:02:26]} 21. a3 {[%emt 0:00:23]} Re8 {[%emt 0:05:50]} 22. g3 {[%emt 0:06:41]} h5 {[%emt 0:04:18]} 23. Bd5 {[%emt 0:04:53]} h4 {[%emt 0:02:04]} 24. gxh4 {[%emt 0:02:39]} Qf6 {[%emt 0:02:34]} 25. Qf4 {[%emt 0:02:25]} Kg7 {[%emt 0:01:08]} 26. Kg2 {[%emt 0:00:09]} Rh8 {[%emt 0:02:34]} 27. Rh1 {[%emt 0:03:27]} Rh6 {[%emt 0:05:56]} 28. Rc5 {[%emt 0:04:51]} Rch8 {[%emt 0:08:56]} 29. Bxc6 {[%emt 0:00:11]} bxc6 {[%emt 0:01:01]} 30. Qe5 {[%emt 0:00:10]} Qxe5 {[%emt 0:00:49]} 31. dxe5 {[%emt 0:00:17]} g5 {[%emt 0:00:48]} 32. h5 {[%emt 0:00:27]} Rb8 {[%emt 0:02:43]} 33. b4 {[%emt 0:00:12]} Rd8 {[%emt 0:00:43]} 34. Rhc1 {[%emt 0:00:22]} Rd3 {[%emt 0:00:50]} 35. R1c3 {[%emt 0:00:16]} Rxc3 {[%emt 0:01:19]} 36. Rxc3 {[%emt 0:00:02]} Re6 {[%emt 0:00:15]} 37. Rc5 {[%emt 0:03:00]} Kh6 {[%emt 0:00:58]} 38. Ra5 {[%emt 0:00:08]} Kxh5 {[%emt 0:00:27]} 39. Rxa6 {[%emt 0:00:12]} Rxe5 {[%emt 0:01:43]} 40. Rxc6 {[%emt 0:00:11]} g4 {[%emt 0:00:23]} 41. Rc5 {[%emt 0:00:18]} 1-0

[Event "XI Paracin Festival 2018"]
[Site "Paracin"]
[Date "2018.07.07"]
[Round "2"]
[White "Kulkarni, Chinmay"]
[Black "Kadric, Denis"]
[Result "0-1"]
[ECO "B07"]
[WhiteElo "2336"]
[BlackElo "2509"]
[Annotator "ChessBase"]
[PlyCount "74"]
[EventDate "2018.07.06"]
[EventType "swiss"]
[EventCountry "SRB"]
[SourceTitle "playchess.com"]
[Source "ChessBase"]
[SourceQuality "1"]
[TimeControl "5400+30"]

1. e4 {[%emt 0:00:00]} d6 {[%emt 0:00:00]} 2. d4 {[%emt 0:00:00]} Nf6 {[%emt 0:00:00]} 3. Nc3 {[%emt 0:00:00]} Nc6 {[%emt 0:00:00]} 4. f4 {[%emt 0:00:48]} e5 {[%emt 0:00:00]} 5. Nf3 {[%emt 0:00:31]} exd4 {[%emt 0:00:00]} 6. Nxd4 {[%emt 0:00:09]} g6 {[%emt 0:00:00]} 7. Nf3 {[%emt 0:06:12]} Bg7 {[%emt 0:00:55]} 8. Bd3 {[%emt 0:00:16]} O-O {[%emt 0:00:30]} 9. a3 {[%emt 0:03:26]} Re8 {[%emt 0:05:57]} 10. O-O {[%emt 0:00:10]} a6 {[%emt 0:00:02]} 11. Bd2 {[%emt 0:05:46]} b5 {[%emt 0:03:36]} 12. Kh1 {[%emt 0:03:49]} Bb7 {[%emt 0:04:25]} 13. Be1 {[%emt 0:06:26]} b4 {[%emt 0:15:15]} 14. axb4 {[%emt 0:00:46]} Nxb4 {[%emt 0:00:02]} 15. Bh4 {[%emt 0:00:08]} Qd7 {[%emt 0:05:21]} 16. e5 {[%emt 0:04:48]} Ng4 {[%emt 0:02:41]} 17. Be4 {[%emt 0:09:45]} Bxe4 {[%emt 0:05:54]} 18. Nxe4 {[%emt 0:00:07]} Ne3 {[%emt 0:03:33]} 19. Qd2 {[%emt 0:05:34]} Nxf1 {[%emt 0:00:03]} 20. Rxf1 {[%emt 0:01:34]} Qb5 {[%emt 0:03:32]} 21. Kg1 {[%emt 0:03:19]} Qc4 {[%emt 0:05:41]} 22. Nf6+ {[%emt 0:04:54]} Bxf6 {[%emt 0:00:02]} 23. Bxf6 {[%emt 0:00:13]} Nd5 {[%emt 0:00:09]} 24. f5 {[%emt 0:03:10]} Nxf6 {[%emt 0:01:08]} 25. exf6 {[%emt 0:00:08]} Qe2 {[%emt 0:00:48]} 26. Qa5 {[%emt 0:02:07]} Qxc2 {[%emt 0:00:45]} 27. fxg6 {[%emt 0:00:42]} hxg6 {[%emt 0:00:03]} 28. Kh1 {[%emt 0:02:12]} Rab8 {[%emt 0:04:20]} 29. h3 {[%emt 0:05:51]} Rxb2 {[%emt 0:01:24]} 30. Qg5 {[%emt 0:01:50]} Qf5 {[%emt 0:02:46]} 31. Qc1 {[%emt 0:06:35]} Qxf6 {[%emt 0:03:47]} 32. Qxc7 {[%emt 0:02:02]} Ree2 {[%emt 0:01:01]} 33. Qc8+ {[%emt 0:05:40]} Kg7 {[%emt 0:00:29]} 34. Nd2 {[%emt 0:00:31]} Rf2 {[%emt 0:00:42]} 35. Rxf2 {[%emt 0:01:07]} Qxf2 {[%emt 0:00:03]} 36. Qc3+ {[%emt 0:00:10]} Qf6 {[%emt 0:00:03]} 37. Qd3 {[%emt 0:00:23]} Qg5 {[%emt 0:00:54]} 0-1

[Event "XI Paracin Festival 2018"]
[Site "Paracin"]
[Date "2018.07.07"]
[Round "2"]
[White "Ozen, Bahadir"]
[Black "Yilmazyerli, Mert"]
[Result "1/2-1/2"]
[ECO "A00"]
[WhiteElo "2317"]
[BlackElo "2491"]
[Annotator "ChessBase"]
[PlyCount "40"]
[EventDate "2018.07.06"]
[EventType "swiss"]
[EventCountry "SRB"]
[SourceTitle "playchess.com"]
[Source "ChessBase"]
[SourceQuality "1"]
[TimeControl "5400+30"]

1. g3 {[%emt 0:01:13]} c5 {[%emt 0:00:00]} 2. Bg2 {[%emt 0:00:12]} Nc6 {[%emt 0:00:00]} 3. Nf3 {[%emt 0:01:08]} g6 {[%emt 0:00:00]} 4. c3 {[%emt 0:01:38]} e5 {[%emt 0:01:56]} 5. e4 {[%emt 0:02:06]} Bg7 {[%emt 0:00:53]} 6. O-O {[%emt 0:00:10]} Nge7 {[%emt 0:00:13]} 7. d3 {[%emt 0:01:53]} O-O {[%emt 0:00:12]} 8. Nbd2 {[%emt 0:00:10]} d6 {[%emt 0:01:27]} 9. Nh4 {[%emt 0:01:19]} g5 {[%emt 0:04:04]} 10. Nhf3 {[%emt 0:01:53]} Ng6 {[%emt 0:02:29]} 11. Nc4 {[%emt 0:05:16]} h6 {[%emt 0:02:02]} 12. Ne3 {[%emt 0:03:16]} Nce7 {[%emt 0:01:32]} 13. Nd2 {[%emt 0:05:23]} Be6 {[%emt 0:00:53]} 14. b4 {[%emt 0:02:27]} Qd7 {[%emt 0:01:29]} 15. a4 {[%emt 0:03:30]} cxb4 {[%emt 0:04:05]} 16. cxb4 {[%emt 0:00:05]} d5 {[%emt 0:00:05]} 17. b5 {[%emt 0:13:11]} Rfd8 {[%emt 0:00:26]} 18. Ba3 {[%emt 0:00:20]} Rac8 {[%emt 0:01:32]} 19. Bb4 {[%emt 0:01:06]} dxe4 {[%emt 0:05:56]} 20. dxe4 {[%emt 0:01:21]} a6 {[%emt 0:11:27]} 1/2-1/2